[Event "*** Titled Tuesday Blitz"]
[Site "Chess.com"]
[Date "2020.10.20"]
[Round "11"]
[White "VerdeNotte"]
[Black "swimmerchess"]
[Result "0-1"]
[WhiteElo "2865"]
[BlackElo "2806"]
[TimeControl "180+1"]
[EndTime "12:09:25 PDT"]
[Termination "swimmerchess won by resignation"]

1. Nf3 {[%clk 0:03:00.9]} 1... Nf6 {[%clk 0:02:58]} 2. c4 {[%clk 0:03:00.1]}
2... g6 {[%clk 0:02:58.5]} 3. b4 {[%clk 0:02:58.9]} 3... Bg7 {[%clk 0:02:58.6]}
4. Bb2 {[%clk 0:02:59.4]} 4... O-O {[%clk 0:02:58.9]} 5. b5 {[%clk 0:02:59.5]}
5... a6 {[%clk 0:02:54.4]} 6. a4 {[%clk 0:02:59.2]} 6... axb5 {[%clk 0:02:54.7]}
7. axb5 {[%clk 0:03:00.1]} 7... Rxa1 {[%clk 0:02:55.1]} 8. Bxa1 {[%clk 0:03:01]}
8... c6 {[%clk 0:02:55.7]} 9. e3 {[%clk 0:02:55.6]} 9... d5 {[%clk 0:02:53.2]}
10. cxd5 {[%clk 0:02:54.1]} 10... cxd5 {[%clk 0:02:41.8]} 11. Be2 {[%clk
0:02:53.6]} 11... Bg4 {[%clk 0:02:40.8]} 12. O-O {[%clk 0:02:50.1]} 12... Nbd7
{[%clk 0:02:40.2]} 13. Ne5 {[%clk 0:02:42.1]} 13... Bxe2 {[%clk 0:02:35.9]} 14.
Qxe2 {[%clk 0:02:43]} 14... Nxe5 {[%clk 0:02:35.7]} 15. Bxe5 {[%clk 0:02:43.9]}
15... Nd7 {[%clk 0:02:36]} 16. Bxg7 {[%clk 0:02:43.8]} 16... Kxg7 {[%clk
0:02:36.9]} 17. Nc3 {[%clk 0:02:44.1]} 17... e6 {[%clk 0:02:37.2]} 18. Ra1
{[%clk 0:02:40.5]} 18... Qc7 {[%clk 0:02:32]} 19. Qg4 {[%clk 0:02:37.9]} 19...
Rc8 {[%clk 0:02:17.9]} 20. Qd4+ {[%clk 0:02:21.5]} 20... Kg8 {[%clk 0:02:16.9]}
21. f4 {[%clk 0:02:15.2]} 21... Nc5 {[%clk 0:01:51.5]} 22. Ra3 {[%clk
0:01:52.8]} 22... b6 {[%clk 0:01:42.6]} 23. Kf1 {[%clk 0:01:48.8]} 23... Ne4
{[%clk 0:01:36.3]} 24. Nxe4 {[%clk 0:01:36.8]} 24... Qc1+ {[%clk 0:01:32.8]} 25.
Ke2 {[%clk 0:01:36.9]} 25... Qxa3 {[%clk 0:01:18.4]} 26. Nf6+ {[%clk 0:01:36.7]}
26... Kf8 {[%clk 0:01:17.8]} 27. Nxh7+ {[%clk 0:01:09.1]} 27... Ke7 {[%clk
0:01:09.8]} 28. Qf6+ {[%clk 0:00:58]} 28... Ke8 {[%clk 0:00:49]} 29. Qh8+ {[%clk
0:00:54.3]} 29... Kd7 {[%clk 0:00:49.1]} 30. Qg7 {[%clk 0:00:45.1]} 30... Qe7
{[%clk 0:00:48.7]} 31. Ng5 {[%clk 0:00:39]} 31... f6 {[%clk 0:00:45]} 32. Qxe7+
{[%clk 0:00:35.8]} 32... Kxe7 {[%clk 0:00:45.9]} 33. Nf3 {[%clk 0:00:36.6]}
33... Rc5 {[%clk 0:00:45]} 34. Nd4 {[%clk 0:00:35.7]} 34... e5 {[%clk
0:00:45.4]} 35. fxe5 {[%clk 0:00:29.3]} 35... fxe5 {[%clk 0:00:46.3]} 36. Nf3
{[%clk 0:00:28.3]} 36... Kd6 {[%clk 0:00:31.3]} 37. Nxe5 {[%clk 0:00:22.5]}
37... Rxb5 {[%clk 0:00:27.1]} 38. Nxg6 {[%clk 0:00:22.6]} 38... Rb1 {[%clk
0:00:26.9]} 39. h4 {[%clk 0:00:20.3]} 39... Rh1 {[%clk 0:00:26]} 40. g4 {[%clk
0:00:14.7]} 40... b5 {[%clk 0:00:25.7]} 41. Kd3 {[%clk 0:00:14.8]} 41... b4
{[%clk 0:00:25.2]} 42. Kc2 {[%clk 0:00:15.1]} 42... Kc5 {[%clk 0:00:25.4]} 43.
h5 {[%clk 0:00:12.6]} 43... Kc4 {[%clk 0:00:23.4]} 44. Ne5+ {[%clk 0:00:12.5]}
44... Kb5 {[%clk 0:00:23.4]} 45. Kb3 {[%clk 0:00:09.8]} 45... Rb1+ {[%clk
0:00:23]} 46. Kc2 {[%clk 0:00:09.7]} 46... Rh1 {[%clk 0:00:23.1]} 47. Nd7 {[%clk
0:00:08.8]} 47... Ka4 {[%clk 0:00:21.1]} 48. Nb6+ {[%clk 0:00:08.9]} 48... Ka3
{[%clk 0:00:20.7]} 49. Nxd5 {[%clk 0:00:09.5]} 49... b3+ {[%clk 0:00:21.2]} 50.
Kd3 {[%clk 0:00:09.7]} 50... b2 {[%clk 0:00:20.4]} 51. Nc3 {[%clk 0:00:10.2]}
51... Rc1 {[%clk 0:00:20.9]} 52. Kd4 {[%clk 0:00:06.3]} 52... Rxc3 {[%clk
0:00:20.1]} 53. dxc3 {[%clk 0:00:07.2]} 53... b1=Q {[%clk 0:00:20.6]} 54. Ke5
{[%clk 0:00:07.5]} 54... Qd3 {[%clk 0:00:19.9]} 55. e4 {[%clk 0:00:07.2]} 55...
Qxc3+ {[%clk 0:00:20]} 56. Kf5 {[%clk 0:00:07.8]} 56... Qf3+ {[%clk 0:00:19]}
57. Kg5 {[%clk 0:00:06.3]} 57... Qxe4 {[%clk 0:00:19.3]} 58. h6 {[%clk
0:00:06.9]} 58... Qh7 {[%clk 0:00:19]} 59. Kh5 {[%clk 0:00:07]} 59... Kb4 {[%clk
0:00:19.6]} 60. g5 {[%clk 0:00:07.3]} 60... Qf5 {[%clk 0:00:20.2]} 0-1

[Event "*** Titled Tuesday Blitz"]
[Site "Chess.com"]
[Date "2020.10.20"]
[Round "11"]
[White "UCantHandleDenker"]
[Black "GMaka"]
[Result "1-0"]
[WhiteElo "2525"]
[BlackElo "2372"]
[TimeControl "180+1"]
[EndTime "12:09:29 PDT"]
[Termination "UCantHandleDenker won by resignation"]

1. Nf3 {[%clk 0:03:00.9]} 1... c6 {[%clk 0:02:52.7]} 2. g3 {[%clk 0:03:01.1]}
2... d5 {[%clk 0:02:53.6]} 3. Bg2 {[%clk 0:03:01.6]} 3... Nf6 {[%clk 0:02:53.8]}
4. O-O {[%clk 0:03:02.5]} 4... g6 {[%clk 0:02:54.7]} 5. d3 {[%clk 0:03:02.9]}
5... Bg7 {[%clk 0:02:55.6]} 6. Nbd2 {[%clk 0:03:03.3]} 6... O-O {[%clk
0:02:56.5]} 7. e4 {[%clk 0:03:03.6]} 7... dxe4 {[%clk 0:02:52.4]} 8. dxe4 {[%clk
0:03:03]} 8... Bg4 {[%clk 0:02:49.2]} 9. h3 {[%clk 0:03:03.1]} 9... Bxf3 {[%clk
0:02:46.7]} 10. Qxf3 {[%clk 0:03:04]} 10... Nbd7 {[%clk 0:02:45.1]} 11. Qe2
{[%clk 0:03:04.5]} 11... e5 {[%clk 0:02:44.2]} 12. Re1 {[%clk 0:03:04.3]} 12...
Qe7 {[%clk 0:02:41.3]} 13. a4 {[%clk 0:03:04.1]} 13... a5 {[%clk 0:02:36.3]} 14.
b3 {[%clk 0:03:04.1]} 14... Rfd8 {[%clk 0:02:33.9]} 15. Ba3 {[%clk 0:03:03.9]}
15... Nc5 {[%clk 0:02:34.2]} 16. Nc4 {[%clk 0:03:01.1]} 16... Nfd7 {[%clk
0:02:17.3]} 17. Rad1 {[%clk 0:02:57.3]} 17... b5 {[%clk 0:02:14.2]} 18. axb5
{[%clk 0:02:27.7]} 18... cxb5 {[%clk 0:02:15.1]} 19. Ne3 {[%clk 0:02:26.3]}
19... b4 {[%clk 0:02:02.6]} 20. Nd5 {[%clk 0:02:24.9]} 20... Qf8 {[%clk
0:01:55.1]} 21. Bc1 {[%clk 0:02:16.1]} 21... Ne6 {[%clk 0:01:53.8]} 22. Be3
{[%clk 0:02:09.6]} 22... Rac8 {[%clk 0:01:46.8]} 23. Ra1 {[%clk 0:02:05.2]}
23... Rc5 {[%clk 0:01:31.7]} 24. Bxc5 {[%clk 0:01:57.7]} 24... Qxc5 {[%clk
0:01:32.6]} 25. Qc4 {[%clk 0:01:46.1]} 25... Nd4 {[%clk 0:01:06.3]} 26. Qxc5
{[%clk 0:01:42.9]} 26... Nxc5 {[%clk 0:01:07.2]} 27. Rxa5 {[%clk 0:01:06.9]}
27... Nxc2 {[%clk 0:01:01.7]} 28. Rb1 {[%clk 0:01:07.3]} 28... Ne6 {[%clk
0:00:51.8]} 29. Bf1 {[%clk 0:00:49]} 29... Ned4 {[%clk 0:00:45.2]} 30. Bc4
{[%clk 0:00:48.3]} 30... Nf3+ {[%clk 0:00:30.3]} 31. Kg2 {[%clk 0:00:47.7]}
31... Nd2 {[%clk 0:00:31.2]} 32. Rc1 {[%clk 0:00:42.2]} 32... Nxc4 {[%clk
0:00:30.3]} 33. bxc4 {[%clk 0:00:38.9]} 33... Nd4 {[%clk 0:00:29.9]} 34. Ra7
{[%clk 0:00:35.5]} 34... Bf8 {[%clk 0:00:26.2]} 35. Rb7 {[%clk 0:00:33.2]} 35...
Bc5 {[%clk 0:00:21.5]} 36. Nf6+ {[%clk 0:00:32]} 36... Kg7 {[%clk 0:00:21.1]}
37. Nd7 {[%clk 0:00:32.7]} 37... Ne6 {[%clk 0:00:13.6]} 38. Nxe5 {[%clk
0:00:21.2]} 38... Bd4 {[%clk 0:00:10.4]} 39. Rxf7+ {[%clk 0:00:16.3]} 39... Kg8
{[%clk 0:00:09.7]} 40. Re7 {[%clk 0:00:16.5]} 40... Nc5 {[%clk 0:00:08.5]} 41.
Nc6 {[%clk 0:00:15.3]} 41... Rd6 {[%clk 0:00:05.9]} 42. Nxd4 {[%clk 0:00:14.9]}
42... Rxd4 {[%clk 0:00:06.8]} 43. Rc7 {[%clk 0:00:14.7]} 43... Nxe4 {[%clk
0:00:06.2]} 44. c5 {[%clk 0:00:13.9]} 44... Rd2 {[%clk 0:00:06.2]} 45. Rf1
{[%clk 0:00:11.5]} 45... b3 {[%clk 0:00:05.7]} 46. Rc8+ {[%clk 0:00:11.5]} 46...
Kg7 {[%clk 0:00:05.6]} 47. Rb8 {[%clk 0:00:11.9]} 47... b2 {[%clk 0:00:05.2]}
48. c6 {[%clk 0:00:11.6]} 48... Rc2 {[%clk 0:00:05.5]} 49. c7 {[%clk 0:00:10.4]}
49... Nd2 {[%clk 0:00:05.9]} 50. Rd1 {[%clk 0:00:06.5]} 50... Ne4 {[%clk
0:00:03.1]} 51. c8=Q {[%clk 0:00:05]} 51... Rxc8 {[%clk 0:00:03.5]} 52. Rxc8
{[%clk 0:00:05.5]} 1-0

[Event "*** Titled Tuesday Blitz"]
[Site "Chess.com"]
[Date "2020.10.20"]
[Round "11"]
[White "jamalm2"]
[Black "KerryStead"]
[Result "0-1"]
[WhiteElo "1818"]
[BlackElo "2027"]
[TimeControl "180+1"]
[EndTime "12:09:29 PDT"]
[Termination "KerryStead won on time"]

1. e4 {[%clk 0:02:58.1]} 1... e5 {[%clk 0:02:13.7]} 2. Nf3 {[%clk 0:02:49.2]}
2... Nc6 {[%clk 0:02:11.6]} 3. d4 {[%clk 0:02:48.8]} 3... exd4 {[%clk
0:02:10.8]} 4. Bc4 {[%clk 0:02:48.4]} 4... Nf6 {[%clk 0:02:08.8]} 5. O-O {[%clk
0:02:44.6]} 5... Bc5 {[%clk 0:02:06.8]} 6. Re1 {[%clk 0:02:40.7]} 6... O-O
{[%clk 0:02:05.9]} 7. h3 {[%clk 0:02:37.1]} 7... d5 {[%clk 0:02:05.5]} 8. exd5
{[%clk 0:02:35]} 8... Nxd5 {[%clk 0:02:05.3]} 9. c3 {[%clk 0:02:28.8]} 9... Nb6
{[%clk 0:02:02.3]} 10. Bb5 {[%clk 0:02:19.7]} 10... dxc3 {[%clk 0:02:01.7]} 11.
Nxc3 {[%clk 0:02:15.2]} 11... Qxd1 {[%clk 0:01:57.2]} 12. Rxd1 {[%clk
0:02:11.1]} 12... Ne7 {[%clk 0:01:56.3]} 13. Ne4 {[%clk 0:02:05.9]} 13... Bd6
{[%clk 0:01:43.3]} 14. Nxd6 {[%clk 0:02:03.9]} 14... cxd6 {[%clk 0:01:43.4]} 15.
Rxd6 {[%clk 0:01:59.5]} 15... Be6 {[%clk 0:01:42.7]} 16. Bg5 {[%clk 0:01:55.9]}
16... Nf5 {[%clk 0:01:40.4]} 17. Rd2 {[%clk 0:01:47.7]} 17... h6 {[%clk
0:01:39.4]} 18. Bf4 {[%clk 0:01:41.4]} 18... Nd5 {[%clk 0:01:38.8]} 19. Bh2
{[%clk 0:01:35.3]} 19... a6 {[%clk 0:01:35.7]} 20. Bc4 {[%clk 0:01:31.9]} 20...
Rfd8 {[%clk 0:01:34.8]} 21. Rad1 {[%clk 0:01:29.5]} 21... Nfe7 {[%clk
0:01:32.6]} 22. Bc7 {[%clk 0:01:04]} 22... Rd7 {[%clk 0:01:30.6]} 23. Ba5 {[%clk
0:00:59]} 23... b5 {[%clk 0:01:28.4]} 24. Bb3 {[%clk 0:00:54]} 24... Nc6 {[%clk
0:01:28.2]} 25. Bc3 {[%clk 0:00:45.7]} 25... Rad8 {[%clk 0:01:26.9]} 26. Be5
{[%clk 0:00:41.5]} 26... Nxe5 {[%clk 0:01:25.6]} 27. Nxe5 {[%clk 0:00:40.8]}
27... Rc7 {[%clk 0:01:18.2]} 28. Bxd5 {[%clk 0:00:38.1]} 28... Rxd5 {[%clk
0:00:40.8]} 29. Rxd5 {[%clk 0:00:34.9]} 29... Bxd5 {[%clk 0:00:39.7]} 30. Rxd5
{[%clk 0:00:34]} 30... Rc2 {[%clk 0:00:29.9]} 31. Rd8+ {[%clk 0:00:29.6]} 31...
Kh7 {[%clk 0:00:27.3]} 32. Nxf7 {[%clk 0:00:29.1]} 32... Rxb2 {[%clk 0:00:26.3]}
33. h4 {[%clk 0:00:28.7]} 33... Kg6 {[%clk 0:00:25.6]} 34. Ne5+ {[%clk 0:00:26]}
34... Kf6 {[%clk 0:00:25.4]} 35. Ng4+ {[%clk 0:00:22.5]} 35... Ke7 {[%clk
0:00:23.3]} 36. Rg8 {[%clk 0:00:18.8]} 36... Kf7 {[%clk 0:00:22.8]} 37. Ra8
{[%clk 0:00:17.6]} 37... Rxa2 {[%clk 0:00:22.8]} 38. Ra7+ {[%clk 0:00:11.1]}
38... Kg6 {[%clk 0:00:20.3]} 39. Ne5+ {[%clk 0:00:10]} 39... Kf6 {[%clk
0:00:18.6]} 40. f4 {[%clk 0:00:07.2]} 40... g5 {[%clk 0:00:11.9]} 41. Rf7+
{[%clk 0:00:06.1]} 41... Ke6 {[%clk 0:00:10.8]} 42. hxg5 {[%clk 0:00:05.6]}
42... hxg5 {[%clk 0:00:10.3]} 43. Rf8 {[%clk 0:00:03.2]} 43... gxf4 {[%clk
0:00:09.8]} 44. Re8+ {[%clk 0:00:02.3]} 44... Kf5 {[%clk 0:00:09.1]} 45. Nf3
{[%clk 0:00:01.3]} 45... b4 {[%clk 0:00:07.8]} 0-1

[Event "*** Titled Tuesday Blitz"]
[Site "Chess.com"]
[Date "2020.10.20"]
[Round "11"]
[White "Kildepiotr"]
[Black "szachuspl"]
[Result "0-1"]
[WhiteElo "2652"]
[BlackElo "2547"]
[TimeControl "180+1"]
[EndTime "12:09:33 PDT"]
[Termination "szachuspl won on time"]

1. Nf3 {[%clk 0:02:59.8]} 1... Nf6 {[%clk 0:02:58.5]} 2. g3 {[%clk 0:02:58.4]}
2... g6 {[%clk 0:02:58.4]} 3. Bg2 {[%clk 0:02:58.7]} 3... Bg7 {[%clk 0:02:59]}
4. O-O {[%clk 0:02:58.9]} 4... O-O {[%clk 0:02:59.7]} 5. d4 {[%clk 0:02:59]}
5... d6 {[%clk 0:02:59.7]} 6. Nbd2 {[%clk 0:02:59.1]} 6... Nc6 {[%clk
0:02:55.9]} 7. e4 {[%clk 0:02:58.7]} 7... e5 {[%clk 0:02:56]} 8. dxe5 {[%clk
0:02:58.7]} 8... Nxe5 {[%clk 0:02:55.5]} 9. Nxe5 {[%clk 0:02:58.2]} 9... dxe5
{[%clk 0:02:55.9]} 10. Qe2 {[%clk 0:02:57.4]} 10... Qe7 {[%clk 0:02:54.9]} 11.
Nc4 {[%clk 0:02:56.5]} 11... Re8 {[%clk 0:02:53.5]} 12. b3 {[%clk 0:02:56.2]}
12... b5 {[%clk 0:02:45]} 13. Ne3 {[%clk 0:02:55]} 13... c6 {[%clk 0:02:42.3]}
14. a4 {[%clk 0:02:54.5]} 14... b4 {[%clk 0:02:40.1]} 15. Bb2 {[%clk 0:02:50.8]}
15... a5 {[%clk 0:02:39.1]} 16. Rfd1 {[%clk 0:02:50.2]} 16... Ba6 {[%clk
0:02:38.9]} 17. Qe1 {[%clk 0:02:49.8]} 17... Bh6 {[%clk 0:02:37.5]} 18. Bf1
{[%clk 0:02:43.3]} 18... Bc8 {[%clk 0:02:13.8]} 19. Nc4 {[%clk 0:02:39.6]} 19...
Bg4 {[%clk 0:02:13.6]} 20. Be2 {[%clk 0:02:37.4]} 20... Be6 {[%clk 0:02:10.4]}
21. Nxe5 {[%clk 0:02:29.3]} 21... Nxe4 {[%clk 0:02:08.5]} 22. Bf3 {[%clk
0:02:26.1]} 22... Nc3 {[%clk 0:01:50.5]} 23. Bxc3 {[%clk 0:02:20.4]} 23... bxc3
{[%clk 0:01:50.5]} 24. Bxc6 {[%clk 0:02:19.9]} 24... Qc5 {[%clk 0:01:46.2]} 25.
Bxa8 {[%clk 0:02:16.8]} 25... Rxa8 {[%clk 0:01:45.7]} 26. Nd3 {[%clk 0:02:09.1]}
26... Qc6 {[%clk 0:01:42.5]} 27. Qe5 {[%clk 0:01:59.5]} 27... Bh3 {[%clk
0:01:32.8]} 28. Nf4 {[%clk 0:01:07.2]} 28... Bxf4 {[%clk 0:01:31.8]} 29. Qd5
{[%clk 0:01:07.5]} 29... Qxd5 {[%clk 0:01:29.1]} 30. Rxd5 {[%clk 0:01:08.4]}
30... Bd2 {[%clk 0:01:27.4]} 31. Rb5 {[%clk 0:01:02.1]} 31... Bf5 {[%clk
0:01:26.4]} 32. Ra2 {[%clk 0:01:00.8]} 32... Bh3 {[%clk 0:01:13.8]} 33. b4
{[%clk 0:00:58.4]} 33... Re8 {[%clk 0:00:45.9]} 34. Ra1 {[%clk 0:00:57.5]} 34...
axb4 {[%clk 0:00:46.2]} 35. a5 {[%clk 0:00:54.1]} 35... Bf5 {[%clk 0:00:34.6]}
36. a6 {[%clk 0:00:49.3]} 36... Bxc2 {[%clk 0:00:25.1]} 37. a7 {[%clk
0:00:48.9]} 37... Be4 {[%clk 0:00:24.4]} 38. Rxb4 {[%clk 0:00:48.8]} 38... c2
{[%clk 0:00:23.7]} 39. Rxe4 {[%clk 0:00:47.2]} 39... Rc8 {[%clk 0:00:18.6]} 40.
Rc4 {[%clk 0:00:31.5]} 40... Rxc4 {[%clk 0:00:14.7]} 41. a8=Q+ {[%clk 0:00:31]}
41... Kg7 {[%clk 0:00:15.3]} 42. Qd5 {[%clk 0:00:26.9]} 42... c1=Q+ {[%clk
0:00:14.7]} 43. Rxc1 {[%clk 0:00:27]} 43... Rxc1+ {[%clk 0:00:14.7]} 44. Kg2
{[%clk 0:00:27.4]} 44... Bc3 {[%clk 0:00:15.2]} 45. h4 {[%clk 0:00:25.5]} 45...
h5 {[%clk 0:00:14.7]} 46. Kf3 {[%clk 0:00:24.8]} 46... Bf6 {[%clk 0:00:14.6]}
47. Qa5 {[%clk 0:00:22]} 47... Rc3+ {[%clk 0:00:14.3]} 48. Kg2 {[%clk
0:00:21.8]} 48... Rc2 {[%clk 0:00:13.6]} 49. Qa4 {[%clk 0:00:21.1]} 49... Rb2
{[%clk 0:00:13.4]} 50. Kf3 {[%clk 0:00:20.1]} 50... Rd2 {[%clk 0:00:13]} 51. Ke3
{[%clk 0:00:19.7]} 51... Rb2 {[%clk 0:00:11.9]} 52. f3 {[%clk 0:00:19.3]} 52...
Rb6 {[%clk 0:00:11.4]} 53. g4 {[%clk 0:00:13.3]} 53... Re6+ {[%clk 0:00:09.6]}
54. Kf4 {[%clk 0:00:08]} 54... Be5+ {[%clk 0:00:06.2]} 55. Ke4 {[%clk
0:00:07.7]} 55... Bf6+ {[%clk 0:00:06.5]} 56. Kd3 {[%clk 0:00:06.1]} 56... hxg4
{[%clk 0:00:05.6]} 57. Qxg4 {[%clk 0:00:05.2]} 57... Re5 {[%clk 0:00:05.7]} 0-1

[Event "*** Titled Tuesday Blitz"]
[Site "Chess.com"]
[Date "2020.10.20"]
[Round "11"]
[White "MITerryble"]
[Black "platy3"]
[Result "1/2-1/2"]
[WhiteElo "2903"]
[BlackElo "2838"]
[TimeControl "180+1"]
[EndTime "12:09:45 PDT"]
[Termination "Game drawn - insufficient material"]

1. d4 {[%clk 0:02:18.9]} 1... Nf6 {[%clk 0:02:59.7]} 2. Nf3 {[%clk 0:02:18.1]}
2... d5 {[%clk 0:02:59.3]} 3. c4 {[%clk 0:02:18.2]} 3... e6 {[%clk 0:02:59.3]}
4. e3 {[%clk 0:02:18.1]} 4... a6 {[%clk 0:02:58.3]} 5. b3 {[%clk 0:02:18.3]}
5... b6 {[%clk 0:02:57.8]} 6. Bd3 {[%clk 0:02:18.5]} 6... Bb7 {[%clk 0:02:57.5]}
7. Bb2 {[%clk 0:02:18.9]} 7... Nbd7 {[%clk 0:02:57.6]} 8. O-O {[%clk 0:02:19.1]}
8... Bd6 {[%clk 0:02:57.8]} 9. Nc3 {[%clk 0:02:18.9]} 9... O-O {[%clk
0:02:58.3]} 10. cxd5 {[%clk 0:02:19.1]} 10... exd5 {[%clk 0:02:58.1]} 11. Rc1
{[%clk 0:02:19]} 11... Qe7 {[%clk 0:02:56.7]} 12. Bf5 {[%clk 0:02:19.1]} 12...
g6 {[%clk 0:02:53.9]} 13. Bh3 {[%clk 0:02:19.2]} 13... Rfe8 {[%clk 0:02:39.5]}
14. Ne2 {[%clk 0:02:12.2]} 14... Ne4 {[%clk 0:02:38.1]} 15. Bxd7 {[%clk
0:02:02.7]} 15... Qxd7 {[%clk 0:02:37.9]} 16. Ng3 {[%clk 0:02:01.8]} 16... f6
{[%clk 0:02:30.7]} 17. Nxe4 {[%clk 0:01:54]} 17... Rxe4 {[%clk 0:02:31.6]} 18.
Rc2 {[%clk 0:01:50.6]} 18... Qe7 {[%clk 0:02:25.7]} 19. Nd2 {[%clk 0:01:40.8]}
19... Re6 {[%clk 0:02:24]} 20. Qf3 {[%clk 0:01:31.9]} 20... Rb8 {[%clk
0:02:07.4]} 21. Rfc1 {[%clk 0:01:31.5]} 21... f5 {[%clk 0:02:07.3]} 22. Nf1
{[%clk 0:01:30.7]} 22... Rf8 {[%clk 0:02:04.2]} 23. g3 {[%clk 0:01:23]} 23... g5
{[%clk 0:02:04.1]} 24. Nd2 {[%clk 0:01:18.9]} 24... f4 {[%clk 0:02:03.6]} 25.
exf4 {[%clk 0:01:12.7]} 25... gxf4 {[%clk 0:02:03.8]} 26. g4 {[%clk 0:01:13]}
26... Qg7 {[%clk 0:01:52.9]} 27. Kh1 {[%clk 0:01:01.5]} 27... Rfe8 {[%clk
0:01:48.1]} 28. h3 {[%clk 0:00:47.1]} 28... Re1+ {[%clk 0:01:36.3]} 29. Kg2
{[%clk 0:00:44.6]} 29... R1e2 {[%clk 0:01:12.3]} 30. Nf1 {[%clk 0:00:42.7]}
30... Qe7 {[%clk 0:00:57]} 31. Nh2 {[%clk 0:00:35]} 31... Rxc2 {[%clk
0:00:55.2]} 32. Rxc2 {[%clk 0:00:35.2]} 32... Qe4 {[%clk 0:00:56.1]} 33. Rc1
{[%clk 0:00:29.2]} 33... Qe2 {[%clk 0:00:55.8]} 34. Bc3 {[%clk 0:00:20.9]} 34...
Qxa2 {[%clk 0:00:51.7]} 35. g5 {[%clk 0:00:18.4]} 35... Qe2 {[%clk 0:00:51.5]}
36. Ng4 {[%clk 0:00:17.7]} 36... Qxf3+ {[%clk 0:00:43.5]} 37. Kxf3 {[%clk
0:00:18.6]} 37... Kf7 {[%clk 0:00:44.2]} 38. Nf6 {[%clk 0:00:15.9]} 38... Rh8
{[%clk 0:00:44.2]} 39. Bd2 {[%clk 0:00:15.9]} 39... h6 {[%clk 0:00:39.4]} 40.
Bxf4 {[%clk 0:00:15.1]} 40... Bxf4 {[%clk 0:00:36.2]} 41. Kxf4 {[%clk 0:00:16]}
41... hxg5+ {[%clk 0:00:36.7]} 42. Kxg5 {[%clk 0:00:15.9]} 42... Rc8 {[%clk
0:00:35.8]} 43. b4 {[%clk 0:00:12.1]} 43... c6 {[%clk 0:00:16.9]} 44. Ng4 {[%clk
0:00:11.8]} 44... Ke6 {[%clk 0:00:16.2]} 45. Re1+ {[%clk 0:00:11.1]} 45... Kd6
{[%clk 0:00:16.4]} 46. f4 {[%clk 0:00:11.4]} 46... c5 {[%clk 0:00:16.5]} 47.
bxc5+ {[%clk 0:00:12.3]} 47... bxc5 {[%clk 0:00:17.2]} 48. dxc5+ {[%clk
0:00:13.2]} 48... Rxc5 {[%clk 0:00:17.8]} 49. f5 {[%clk 0:00:13.3]} 49... d4
{[%clk 0:00:18.2]} 50. Kf4 {[%clk 0:00:13.4]} 50... Bc8 {[%clk 0:00:15.9]} 51.
Nh6 {[%clk 0:00:09.9]} 51... d3 {[%clk 0:00:14.2]} 52. Rd1 {[%clk 0:00:09]}
52... Rd5 {[%clk 0:00:14.4]} 53. Ke4 {[%clk 0:00:09.1]} 53... d2 {[%clk
0:00:14.5]} 54. Ke3 {[%clk 0:00:05.8]} 54... Bxf5 {[%clk 0:00:08.7]} 55. Rxd2
{[%clk 0:00:03.8]} 55... Be6 {[%clk 0:00:03.2]} 56. Rxd5+ {[%clk 0:00:03.2]}
56... Kxd5 {[%clk 0:00:04.1]} 57. Kd2 {[%clk 0:00:03.7]} 57... Ke5 {[%clk
0:00:04.2]} 58. Ng4+ {[%clk 0:00:03.6]} 58... Kf4 {[%clk 0:00:04.5]} 59. Kc3
{[%clk 0:00:03.5]} 59... Bxg4 {[%clk 0:00:03.6]} 60. hxg4 {[%clk 0:00:03.8]}
60... Kxg4 {[%clk 0:00:04.5]} 61. Kc4 {[%clk 0:00:04.1]} 61... Kh3 {[%clk
0:00:05.4]} 62. Kb4 {[%clk 0:00:04.6]} 62... Kh2 {[%clk 0:00:06.3]} 63. Ka5
{[%clk 0:00:05.1]} 63... Kh1 {[%clk 0:00:07.2]} 64. Kxa6 {[%clk 0:00:05.7]}
1/2-1/2